Workbook

Sheet tabula
C2: "Lielā viktorīna: Atskats uz 2025.gadu" (tiešsaistē / vebinārā) | 2026.gada 3.janvāris
B3: Grupa | C3: # | D3: Dalībnieks | Raunds | Tēma | E3: 1 | F3: 2 | G3: 3 | H3: 4 | I3: 5 | J3: 6 | K3: 7 | L3: 8 | M3: 9 | N3: 10 | O3: KOPĀ | P3: Laiks kopā uz pareizajām atbildēm | Q3: Pareizās atbildes (max) | R3: Vid.laiks uz 1 pareizo atb.
E4: Pavediens | F4: Ekspresis | G4: Vizuālais | H4: Kinopasaule | I4: Ķēde | J4: Latvija | K4: Risks | L4: Kas kopīgs? | M4: Liekais pazūd | N4: Audio
D5: Max punkti raundā (bez bonusiem) | E5: 150 | F5: 216 | G5: 150 | H5: 150 | I5: 200 | J5: 150 | K5: 120 | L5: 205 | M5: 150 | N5: 150 | O5: =SUM(E5:N5) -> 1641
C6: Jautājumi | E6: 6 | F6: 12 | G6: 6 | H6: 6 | I6: 8 | J6: 6 | K6: 6 | L6: 8 | M6: 6 | N6: 6 | Q6: =SUM(E6:N6) -> 70
D7: Vidējie rādītāji | E7: =ROUND(AVERAGE(E8:E1885),1) -> 90.1 | F7: =ROUND(AVERAGE(F8:F1885),1) -> 136.3 | G7: =ROUND(AVERAGE(G8:G1885),1) -> 69.3 | H7: =ROUND(AVERAGE(H8:H1885),1) -> 82.2 | I7: =ROUND(AVERAGE(I8:I1885),1) -> 110.7 | J7: =ROUND(AVERAGE(J8:J1885),1) -> 76.6 | K7: =ROUND(AVERAGE(K8:K1885),1) -> 14.6 | L7: =ROUND(AVERAGE(L8:L1885),1) -> 90.7 | M7: =ROUND(AVERAGE(M8:M1885),1) -> 61.5 | N7: =ROUND(AVERAGE(N8:N1885),1) -> 72.9 | O7: =ROUND(AVERAGE(O8:O1885),1) -> 802.1 | P7: - | Q7: =ROUND(AVERAGE(Q8:Q1885),1) -> 47 | R7: -
B8: 3 | C8: 1 | D8: Āreče | E8: 142 | F8: 210 | G8: 143 | H8: 141 | I8: 163 | J8: 136 | K8: 101 | L8: 163 | M8: 126 | N8: 126 | O8: =SUM(E8:N8) -> 1451 | P8: 04 min. 03,872 | Q8: 68 | R8: 03,586 sek.
B9: 1 | C9: 2 | D9: Bunkurs_13 | E9: 137 | F9: 185 | G9: 117 | H9: 135 | I9: 186 | J9: 116 | K9: 103 | L9: 146 | M9: 103 | N9: 132 | O9: =SUM(E9:N9) -> 1360 | P9: 05 min. 15,222 | Q9: 66 | R9: 04,776 sek.
B10: 1 | C10: 3 | D10: MC Biskvīts | E10: 122 | F10: 146 | G10: 137 | H10: 114 | I10: 160 | J10: 124 | K10: 74 | L10: 169 | M10: 96 | N10: 119 | O10: =SUM(E10:N10) -> 1261 | P10: 06 min. 34,087 | Q10: 64 | R10: 06,158 sek.
B11: 3 | C11: 4 | D11: VMR+ | E11: 137 | F11: 134 | G11: 117 | H11: 127 | I11: 163 | J11: 134 | K11: 73 | L11: 126 | M11: 123 | N11: 119 | O11: =SUM(E11:N11) -> 1253 | P11: 06 min. 33,726 | Q11: 64 | R11: 06,152 sek.
B12: 1 | C12: 5 | D12: Disko roze | E12: 130 | F12: 173 | G12: 109 | H12: 97 | I12: 160 | J12: 81 | K12: 97 | L12: 147 | M12: 100 | N12: 130 | O12: =SUM(E12:N12) -> 1224 | P12: 06 min. 40,707 | Q12: 63 | R12: 06,360 sek.
B13: 3 | C13: 6 | D13: Brūnāži | E13: 140 | F13: 155 | G13: 100 | H13: 117 | I13: 186 | J13: 91 | K13: 96 | L13: 142 | M13: 73 | N13: 122 | O13: =SUM(E13:N13) -> 1222 | P13: 06 min. 33,843 | Q13: 63 | R13: 06,251 sek.
B14: 1 | C14: 7 | D14: Sindija DJV | E14: 139 | F14: 148 | G14: 65 | H14: 94 | I14: 191 | J14: 113 | K14: 80 | L14: 188 | M14: 112 | N14: 83 | O14: =SUM(E14:N14) -> 1213 | P14: 04 min. 06,153 | Q14: 58 | R14: 04,244 sek.
B15: 1 | C15: 8 | D15: Okavango | E15: 137 | F15: 116 | G15: 136 | H15: 78 | I15: 180 | J15: 112 | K15: 74 | L15: 159 | M15: 95 | N15: 112 | O15: =SUM(E15:N15) -> 1199 | P15: 05 min. 18,683 | Q15: 59 | R15: 05,401 sek.
B16: 2 | C16: 9 | D16: Vienā laidā | E16: 78 | F16: 190 | G16: 113 | H16: 123 | I16: 181 | J16: 100 | K16: 48 | L16: 163 | M16: 113 | N16: 84 | O16: =SUM(E16:N16) -> 1193 | P16: 08 min. 53,616 | Q16: 65 | R16: 08,209 sek.
B17: 3 | C17: 10 | D17: Mumini sniegā | E17: 130 | F17: 152 | G17: 123 | H17: 96 | I17: 183 | J17: 128 | K17: 71 | L17: 125 | M17: 76 | N17: 103 | O17: =SUM(E17:N17) -> 1187 | P17: 08 min. 02,632 | Q17: 63 | R17: 07,661 sek.
B18: 2 | C18: 11 | D18: Matu vēji | E18: 124 | F18: 136 | G18: 129 | H18: 98 | I18: 187 | J18: 92 | K18: 77 | L18: 156 | M18: 62 | N18: 126 | O18: =SUM(E18:N18) -> 1187 | P18: 06 min. 10,479 | Q18: 61 | R18: 06,073 sek.
B19: 2 | C19: 12 | D19: ROGAS | E19: 99 | F19: 139 | G19: 121 | H19: 101 | I19: 175 | J19: 107 | K19: 36 | L19: 149 | M19: 116 | N19: 132 | O19: =SUM(E19:N19) -> 1175 | P19: 07 min. 28,437 | Q19: 63 | R19: 07,118 sek.
B20: 2 | C20: 13 | D20: Šķērmanis Sīpolacis | E20: 122 | F20: 146 | G20: 95 | H20: 131 | I20: 180 | J20: 100 | K20: 31 | L20: 168 | M20: 100 | N20: 99 | O20: =SUM(E20:N20) -> 1172 | P20: 09 min. 12,397 | Q20: 66 | R20: 08,370 sek.
B21: 3 | C21: 14 | D21: Brians | E21: 96 | F21: 166 | G21: 133 | H21: 94 | I21: 184 | J21: 93 | K21: 23 | L21: 173 | M21: 102 | N21: 100 | O21: =SUM(E21:N21) -> 1164 | P21: 06 min. 15,106 | Q21: 60 | R21: 06,252 sek.
B22: 1 | C22: 15 | D22: Vortusiņš | E22: 126 | F22: 186 | G22: 138 | H22: 109 | I22: 94 | J22: 112 | K22: 52 | L22: 121 | M22: 94 | N22: 127 | O22: =SUM(E22:N22) -> 1159 | P22: 05 min. 33,735 | Q22: 59 | R22: 05,657 sek.
B23: 3 | C23: 16 | D23: Vilciņi | E23: 110 | F23: 157 | G23: 126 | H23: 84 | I23: 167 | J23: 104 | K23: 83 | L23: 137 | M23: 65 | N23: 125 | O23: =SUM(E23:N23) -> 1158 | P23: 08 min. 40,214 | Q23: 63 | R23: 08,257 sek.
B24: 3 | C24: 17 | D24: OB MEDNIEKI | E24: 113 | F24: 167 | G24: 124 | H24: 114 | I24: 136 | J24: 115 | K24: 20 | L24: 156 | M24: 81 | N24: 132 | O24: =SUM(E24:N24) -> 1158 | P24: 06 min. 06,371 | Q24: 60 | R24: 06,106 sek.
B25: 3 | C25: 18 | D25: Dancings cats | E25: 104 | F25: 163 | G25: 118 | H25: 114 | I25: 187 | J25: 108 | K25: 18 | L25: 164 | M25: 87 | N25: 89 | O25: =SUM(E25:N25) -> 1152 | P25: 06 min. 10,338 | Q25: 61 | R25: 06,071 sek.
B26: 1 | C26: 19 | D26: Trīs aklās peles | E26: 110 | F26: 151 | G26: 89 | H26: 115 | I26: 168 | J26: 120 | K26: 56 | L26: 131 | M26: 72 | N26: 134 | O26: =SUM(E26:N26) -> 1146 | P26: 07 min. 32,753 | Q26: 62 | R26: 07,302 sek.
B27: 1 | C27: 20 | D27: EZERI | E27: 130 | F27: 168 | G27: 93 | H27: 88 | I27: 180 | J27: 102 | K27: 60 | L27: 140 | M27: 91 | N27: 77 | O27: =SUM(E27:N27) -> 1129 | P27: 07 min. 28,118 | Q27: 60 | R27: 07,469 sek.
B28: 3 | C28: 21 | D28: Twister&Dobby | E28: 97 | F28: 184 | G28: 138 | H28: 86 | I28: 185 | J28: 69 | K28: -1 | L28: 134 | M28: 103 | N28: 129 | O28: =SUM(E28:N28) -> 1124 | P28: 04 min. 57,513 | Q28: 57 | R28: 05,220 sek.
C29: 22 | D29: Madride | E29: 87 | F29: 151 | G29: 117 | H29: 77 | I29: 176 | J29: 94 | K29: 59 | L29: 168 | M29: 90 | N29: 104 | O29: =SUM(E29:N29) -> 1123 | P29: 08 min. 49,623 | Q29: 63 | R29: 08,407 sek.
C30: 23 | D30: Badijs spēlē viktorīnu | E30: 139 | F30: 151 | G30: 83 | H30: 107 | I30: 181 | J30: 138 | K30: 67 | L30: 83 | M30: 67 | N30: 105 | O30: =SUM(E30:N30) -> 1121 | P30: 05 min. 32,711 | Q30: 57 | R30: 05,837 sek.
C31: 24 | D31: Austošais Susurs | E31: 141 | F31: 213 | G31: 73 | H31: 71 | I31: 138 | J31: 92 | K31: 51 | L31: 117 | M31: 124 | N31: 101 | O31: =SUM(E31:N31) -> 1121 | P31: 03 min. 12,637 | Q31: 54 | R31: 03,567 sek.
C32: 25 | D32: Pa Zoino 1 | E32: 131 | F32: 171 | G32: 82 | H32: 92 | I32: 139 | J32: 107 | K32: 61 | L32: 128 | M32: 75 | N32: 132 | O32: =SUM(E32:N32) -> 1118 | P32: 05 min. 11,269 | Q32: 57 | R32: 05,461 sek.
C33: 26 | D33: STELLA | E33: 126 | F33: 164 | G33: 121 | H33: 87 | I33: 155 | J33: 73 | K33: 64 | L33: 163 | M33: 89 | N33: 75 | O33: =SUM(E33:N33) -> 1117 | P33: 07 min. 53,513 | Q33: 60 | R33: 07,892 sek.
C34: 27 | D34: Ļaunais gads | E34: 103 | F34: 164 | G34: 106 | H34: 92 | I34: 146 | J34: 127 | K34: 68 | L34: 130 | M34: 82 | N34: 98 | O34: =SUM(E34:N34) -> 1116 | P34: 08 min. 15,669 | Q34: 60 | R34: 08,261 sek.
C35: 28 | D35: Korkpleesis+2 | E35: 118 | F35: 197 | G35: 92 | H35: 134 | I35: 117 | J35: 94 | K35: 66 | L35: 130 | M35: 76 | N35: 76 | O35: =SUM(E35:N35) -> 1100 | P35: 05 min. 43,083 | Q35: 57 | R35: 06,019 sek.
C36: 29 | D36: Terasītes gudrinieki | E36: 102 | F36: 181 | G36: 105 | H36: 131 | I36: 146 | J36: 66 | K36: 62 | L36: 97 | M36: 91 | N36: 115 | O36: =SUM(E36:N36) -> 1096 | P36: 07 min. 52,287 | Q36: 60 | R36: 07,871 sek.
C37: 30 | D37: SAULES IELA | E37: 129 | F37: 157 | G37: 117 | H37: 99 | I37: 151 | J37: 106 | K37: 42 | L37: 160 | M37: 49 | N37: 85 | O37: =SUM(E37:N37) -> 1095 | P37: 08 min. 51,495 | Q37: 61 | R37: 08,713 sek.
C38: 31 | D38: LietuvietisMājās | E38: 102 | F38: 182 | G38: 95 | H38: 98 | I38: 93 | J38: 113 | K38: 97 | L38: 144 | M38: 87 | N38: 80 | O38: =SUM(E38:N38) -> 1091 | P38: 08 min. 21,459 | Q38: 60 | R38: 08,358 sek.
C39: 32 | D39: Wilsons | E39: 116 | F39: 141 | G39: 72 | H39: 109 | I39: 142 | J39: 105 | K39: 63 | L39: 149 | M39: 76 | N39: 99 | O39: =SUM(E39:N39) -> 1072 | P39: 09 min. 48,938 | Q39: 61 | R39: 09,655 sek.
C40: 33 | D40: Kebabosi | E40: 130 | F40: 183 | G40: 71 | H40: 129 | I40: 113 | J40: 102 | K40: 14 | L40: 135 | M40: 75 | N40: 118 | O40: =SUM(E40:N40) -> 1070 | P40: 06 min. 42,940 | Q40: 57 | R40: 07,069 sek.
C41: 34 | D41: Enigma | E41: 104 | F41: 164 | G41: 112 | H41: 112 | I41: 162 | J41: 108 | K41: 11 | L41: 142 | M41: 72 | N41: 74 | O41: =SUM(E41:N41) -> 1061 | P41: 07 min. 52,454 | Q41: 58 | R41: 08,146 sek.
C42: 35 | D42: Panorāmas laikā | E42: 130 | F42: 170 | G42: 85 | H42: 111 | I42: 153 | J42: 83 | K42: 79 | L42: 95 | M42: 56 | N42: 97 | O42: =SUM(E42:N42) -> 1059 | P42: 07 min. 18,283 | Q42: 58 | R42: 07,557 sek.
C43: 36 | D43: Skrējēji | E43: 92 | F43: 145 | G43: 120 | H43: 100 | I43: 167 | J43: 85 | K43: 44 | L43: 119 | M43: 80 | N43: 103 | O43: =SUM(E43:N43) -> 1055 | P43: 08 min. 45,995 | Q43: 59 | R43: 08,915 sek.
C44: 37 | D44: Dusmes pūces | E44: 121 | F44: 154 | G44: 77 | H44: 116 | I44: 132 | J44: 95 | K44: 38 | L44: 125 | M44: 83 | N44: 112 | O44: =SUM(E44:N44) -> 1053 | P44: 07 min. 55,236 | Q44: 58 | R44: 08,194 sek.
C45: 38 | D45: Lieliskie kaimiņi | E45: 102 | F45: 89 | G45: 118 | H45: 82 | I45: 155 | J45: 128 | K45: 51 | L45: 147 | M45: 68 | N45: 99 | O45: =SUM(E45:N45) -> 1039 | P45: 10 min. 01,338 | Q45: 59 | R45: 10,192 sek.
C46: 39 | D46: Fantastiskais četrinieks | E46: 100 | F46: 169 | G46: 94 | H46: 114 | I46: 131 | J46: 129 | K46: 30 | L46: 116 | M46: 83 | N46: 73 | O46: =SUM(E46:N46) -> 1039 | P46: 06 min. 40,796 | Q46: 57 | R46: 07,032 sek.
C47: 40 | D47: nezinu | E47: 99 | F47: 111 | G47: 88 | H47: 126 | I47: 142 | J47: 71 | K47: 90 | L47: 151 | M47: 60 | N47: 100 | O47: =SUM(E47:N47) -> 1038 | P47: 07 min. 42,562 | Q47: 56 | R47: 08,260 sek.
C48: 41 | D48: Yao Aģentūra | E48: 106 | F48: 134 | G48: 98 | H48: 97 | I48: 165 | J48: 106 | K48: 31 | L48: 137 | M48: 42 | N48: 104 | O48: =SUM(E48:N48) -> 1020 | P48: 11 min. 38,760 | Q48: 63 | R48: 11,091 sek.
C49: 42 | D49: Planēta Pritons | E49: 78 | F49: 169 | G49: 87 | H49: 111 | I49: 132 | J49: 85 | K49: 92 | L49: 108 | M49: 80 | N49: 78 | O49: =SUM(E49:N49) -> 1020 | P49: 09 min. 21,823 | Q49: 58 | R49: 09,687 sek.
C50: 43 | D50: Liepājas badmintonisti | E50: 113 | F50: 165 | G50: 100 | H50: 94 | I50: 146 | J50: 67 | K50: 51 | L50: 100 | M50: 80 | N50: 96 | O50: =SUM(E50:N50) -> 1012 | P50: 07 min. 44,585 | Q50: 57 | R50: 08,151 sek.
C51: 44 | D51: Margozaurs | E51: 101 | F51: 133 | G51: 87 | H51: 121 | I51: 184 | J51: 128 | K51: 16 | L51: 110 | M51: 44 | N51: 88 | O51: =SUM(E51:N51) -> 1012 | P51: 07 min. 21,767 | Q51: 56 | R51: 07,889 sek.
C52: 45 | D52: K&K | E52: 82 | F52: 148 | G52: 93 | H52: 109 | I52: 147 | J52: 95 | K52: 67 | L52: 126 | M52: 41 | N52: 99 | O52: =SUM(E52:N52) -> 1007 | P52: 09 min. 06,513 | Q52: 59 | R52: 09,263 sek.
C53: 46 | D53: Zilais Leopolds | E53: 100 | F53: 184 | G53: 111 | H53: 104 | I53: 150 | J53: 84 | K53: 32 | L53: 68 | M53: 66 | N53: 107 | O53: =SUM(E53:N53) -> 1006 | P53: 08 min. 06,205 | Q53: 57 | R53: 08,530 sek.
C54: 47 | D54: JŪRMALAS PIRĀTI | E54: 89 | F54: 124 | G54: 87 | H54: 106 | I54: 150 | J54: 107 | K54: 80 | L54: 124 | M54: 78 | N54: 60 | O54: =SUM(E54:N54) -> 1005 | P54: 14 min. 36,225 | Q54: 66 | R54: 13,276 sek.
C55: 48 | D55: Slagūnists | E55: 103 | F55: 158 | G55: 79 | H55: 139 | I55: 153 | J55: 101 | K55: -9 | L55: 135 | M55: 58 | N55: 88 | O55: =SUM(E55:N55) -> 1005 | P55: 08 min. 56,687 | Q55: 58 | R55: 09,253 sek.
C56: 49 | D56: Bugatti Gožār | E56: 122 | F56: 87 | G56: 104 | H56: 106 | I56: 124 | J56: 113 | K56: 28 | L56: 105 | M56: 111 | N56: 101 | O56: =SUM(E56:N56) -> 1001 | P56: 06 min. 56,429 | Q56: 54 | R56: 07,712 sek.
C57: 50 | D57: Gatiņa dienasgrāmata | E57: 99 | F57: 161 | G57: 104 | H57: 82 | I57: 144 | J57: 69 | K57: 40 | L57: 117 | M57: 77 | N57: 103 | O57: =SUM(E57:N57) -> 996 | P57: 07 min. 58,480 | Q57: 56 | R57: 08,544 sek.
C58: 51 | D58: Ceriņmāja | E58: 115 | F58: 168 | G58: 76 | H58: 90 | I58: 162 | J58: 98 | K58: 9 | L58: 115 | M58: 70 | N58: 89 | O58: =SUM(E58:N58) -> 992 | P58: 07 min. 08,681 | Q58: 55 | R58: 07,794 sek.
C59: 52 | D59: Pienapaka- | E59: 104 | F59: 151 | G59: 56 | H59: 112 | I59: 128 | J59: 66 | K59: 100 | L59: 119 | M59: 60 | N59: 89 | O59: =SUM(E59:N59) -> 985 | P59: 06 min. 05,271 | Q59: 52 | R59: 07,024 sek.
C60: 53 | D60: Rain Dear | E60: 110 | F60: 179 | G60: 104 | H60: 88 | I60: 107 | J60: 94 | K60: 77 | L60: 102 | M60: 84 | N60: 38 | O60: =SUM(E60:N60) -> 983 | P60: 05 min. 17,051 | Q60: 51 | R60: 06,217 sek.
C61: 54 | D61: Greizie Bumbierīši | E61: 112 | F61: 180 | G61: 68 | H61: 100 | I61: 147 | J61: 91 | K61: 15 | L61: 132 | M61: 60 | N61: 76 | O61: =SUM(E61:N61) -> 981 | P61: 06 min. 57,883 | Q61: 54 | R61: 07,739 sek.
C62: 55 | D62: Jaunanglijas gliemju zupa | E62: 109 | F62: 175 | G62: 85 | H62: 81 | I62: 85 | J62: 137 | K62: 15 | L62: 142 | M62: 79 | N62: 73 | O62: =SUM(E62:N62) -> 981 | P62: 06 min. 53,540 | Q62: 54 | R62: 07,658 sek.
C63: 56 | D63: Autentifikatori | E63: 118 | F63: 92 | G63: 117 | H63: 112 | I63: 131 | J63: 83 | K63: 20 | L63: 127 | M63: 59 | N63: 117 | O63: =SUM(E63:N63) -> 976 | P63: 06 min. 53,220 | Q63: 52 | R63: 07,947 sek.
C64: 57 | D64: Ādaži City | E64: 91 | F64: 150 | G64: 99 | H64: 130 | I64: 148 | J64: 91 | K64: 6 | L64: 124 | M64: 59 | N64: 77 | O64: =SUM(E64:N64) -> 975 | P64: 06 min. 40,636 | Q64: 53 | R64: 07,559 sek.
C65: 58 | D65: Akomanda | E65: 125 | F65: 180 | G65: 94 | H65: 88 | I65: 130 | J65: 53 | K65: -6 | L65: 144 | M65: 69 | N65: 92 | O65: =SUM(E65:N65) -> 969 | P65: 07 min. 30,600 | Q65: 54 | R65: 08,344 sek.
C66: 59 | D66: Van Tūži | E66: 129 | F66: 126 | G66: 97 | H66: 86 | I66: 166 | J66: 62 | K66: 54 | L66: 83 | M66: 74 | N66: 89 | O66: =SUM(E66:N66) -> 966 | P66: 08 min. 41,962 | Q66: 55 | R66: 09,490 sek.
C67: 60 | D67: Blāzmas | E67: 87 | F67: 173 | G67: 68 | H67: 112 | I67: 133 | J67: 90 | K67: 49 | L67: 109 | M67: 82 | N67: 61 | O67: =SUM(E67:N67) -> 964 | P67: 05 min. 38,585 | Q67: 51 | R67: 06,639 sek.
C68: 61 | D68: Žorža siksnas | E68: 103 | F68: 162 | G68: 75 | H68: 71 | I68: 107 | J68: 92 | K68: 71 | L68: 100 | M68: 74 | N68: 109 | O68: =SUM(E68:N68) -> 964 | P68: 05 min. 56,202 | Q68: 51 | R68: 06,984 sek.
C69: 62 | D69: Vācieši | E69: 119 | F69: 114 | G69: 62 | H69: 103 | I69: 137 | J69: 130 | K69: 38 | L69: 137 | M69: 52 | N69: 70 | O69: =SUM(E69:N69) -> 962 | P69: 06 min. 27,367 | Q69: 51 | R69: 07,595 sek.
C70: 63 | D70: Vēberi | E70: 117 | F70: 122 | G70: 91 | H70: 75 | I70: 155 | J70: 94 | K70: 37 | L70: 101 | M70: 68 | N70: 99 | O70: =SUM(E70:N70) -> 959 | P70: 11 min. 27,648 | Q70: 60 | R70: 11,461 sek.
C71: 64 | D71: Dzins bez tonika | E71: 92 | F71: 118 | G71: 98 | H71: 94 | I71: 148 | J71: 96 | K71: 56 | L71: 105 | M71: 67 | N71: 85 | O71: =SUM(E71:N71) -> 959 | P71: 09 min. 03,776 | Q71: 55 | R71: 09,887 sek.
C72: 65 | D72: Rakijs | E72: 113 | F72: 152 | G72: 73 | H72: 97 | I72: 137 | J72: 109 | K72: 33 | L72: 89 | M72: 88 | N72: 68 | O72: =SUM(E72:N72) -> 959 | P72: 08 min. 49,876 | Q72: 55 | R72: 09,634 sek.
C73: 66 | D73: 2025++ | E73: 124 | F73: 198 | G73: 83 | H73: 90 | I73: 109 | J73: 121 | K73: 3 | L73: 84 | M73: 83 | N73: 64 | O73: =SUM(E73:N73) -> 959 | P73: 04 min. 23,318 | Q73: 50 | R73: 05,266 sek.
C74: 67 | D74: PAKO6 | E74: 93 | F74: 128 | G74: 107 | H74: 90 | I74: 166 | J74: 69 | K74: 41 | L74: 118 | M74: 56 | N74: 88 | O74: =SUM(E74:N74) -> 956 | P74: 10 min. 46,708 | Q74: 58 | R74: 11,150 sek.
C75: 68 | D75: Stams | E75: 81 | F75: 131 | G75: 123 | H75: 74 | I75: 175 | J75: 112 | K75: 19 | L75: 115 | M75: 57 | N75: 63 | O75: =SUM(E75:N75) -> 950 | P75: 09 min. 33,555 | Q75: 56 | R75: 10,242 sek.
C76: 69 | D76: Fērgusa komanda1 | E76: 83 | F76: 139 | G76: 105 | H76: 70 | I76: 170 | J76: 78 | K76: 50 | L76: 91 | M76: 82 | N76: 80 | O76: =SUM(E76:N76) -> 948 | P76: 05 min. 27,818 | Q76: 50 | R76: 08,468 sek.
C77: 70 | D77: Eglītes | E77: 102 | F77: 158 | G77: 76 | H77: 104 | I77: 155 | J77: 67 | K77: 14 | L77: 129 | M77: 48 | N77: 94 | O77: =SUM(E77:N77) -> 947 | P77: 08 min. 20,166 | Q77: 54 | R77: 09,262 sek.
C78: 71 | D78: Futbolists45 | E78: 104 | F78: 148 | G78: 104 | H78: 68 | I78: 119 | J78: 94 | K78: 37 | L78: 127 | M78: 74 | N78: 68 | O78: =SUM(E78:N78) -> 943 | P78: 07 min. 01,362 | Q78: 52 | R78: 08,766 sek.
C79: 72 | D79: Lacplesa iela 68 | E79: 111 | F79: 137 | G79: 38 | H79: 91 | I79: 140 | J79: 131 | K79: 5 | L79: 113 | M79: 79 | N79: 98 | O79: =SUM(E79:N79) -> 943 | P79: 06 min. 41,922 | Q79: 52 | R79: 07,729 sek.
C80: 73 | D80: Barkava | E80: 76 | F80: 155 | G80: 58 | H80: 92 | I80: 150 | J80: 67 | K80: 32 | L80: 129 | M80: 76 | N80: 106 | O80: =SUM(E80:N80) -> 941 | P80: 09 min. 18,978 | Q80: 55 | R80: 10,163 sek.
C81: 74 | D81: Balodis | E81: 64 | F81: 136 | G81: 75 | H81: 99 | I81: 146 | J81: 95 | K81: 11 | L81: 121 | M81: 64 | N81: 123 | O81: =SUM(E81:N81) -> 934 | P81: 10 min. 04,676 | Q81: 56 | R81: 10,798 sek.
C82: 75 | D82: Poga | E82: 101 | F82: 143 | G82: 60 | H82: 100 | I82: 180 | J82: 114 | K82: 22 | L82: 80 | M82: 39 | N82: 88 | O82: =SUM(E82:N82) -> 927 | P82: 09 min. 52,422 | Q82: 56 | R82: 10,579 sek.
C83: 76 | D83: Čuriņiela | E83: 112 | F83: 144 | G83: 94 | H83: 115 | I83: 134 | J83: 68 | K83: -2 | L83: 100 | M83: 72 | N83: 88 | O83: =SUM(E83:N83) -> 925 | P83: 06 min. 16,745 | Q83: 51 | R83: 07,387 sek.
C84: 77 | D84: Emīlija un viņas istabas kambari | E84: 108 | F84: 122 | G84: 93 | H84: 104 | I84: 126 | J84: 85 | K84: 13 | L84: 109 | M84: 60 | N84: 104 | O84: =SUM(E84:N84) -> 924 | P84: 11 min. 42,290 | Q84: 57 | R84: 12,321 sek.
C85: 78 | D85: STŪRĪŠI | E85: 110 | F85: 113 | G85: 77 | H85: 112 | I85: 149 | J85: 81 | K85: 51 | L85: 93 | M85: 66 | N85: 72 | O85: =SUM(E85:N85) -> 924 | P85: 09 min. 24,657 | Q85: 54 | R85: 10,457 sek.
C86: 79 | D86: OLMERPRO | E86: 105 | F86: 88 | G86: 87 | H86: 88 | I86: 106 | J86: 88 | K86: 72 | L86: 111 | M86: 94 | N86: 82 | O86: =SUM(E86:N86) -> 921 | P86: 11 min. 09,072 | Q86: 58 | R86: 11,536 sek.
C87: 80 | D87: Bendžamiņš | E87: 101 | F87: 193 | G87: 115 | H87: 66 | I87: 164 | J87: 69 | K87: -3 | L87: 93 | M87: 60 | N87: 61 | O87: =SUM(E87:N87) -> 919 | P87: 03 min. 28,884 | Q87: 48 | R87: 04,352 sek.
C88: 81 | D88: Suituceļš | E88: 124 | F88: 136 | G88: 120 | H88: 91 | I88: 60 | J88: 93 | K88: 49 | L88: 106 | M88: 87 | N88: 50 | O88: =SUM(E88:N88) -> 916 | P88: 05 min. 41,648 | Q88: 49 | R88: 06,972 sek.
C89: 82 | D89: Saule20 | E89: 86 | F89: 134 | G89: 126 | H89: 65 | I89: 153 | J89: 59 | K89: 23 | L89: 124 | M89: 107 | N89: 38 | O89: =SUM(E89:N89) -> 915 | P89: 07 min. 15,638 | Q89: 52 | R89: 08,378 sek.
C90: 83 | D90: Inspektors DZELTENĀ CIELAVA | E90: 122 | F90: 114 | G90: 115 | H90: 126 | I90: 82 | J90: 107 | K90: 33 | L90: 96 | M90: 50 | N90: 69 | O90: =SUM(E90:N90) -> 914 | P90: 06 min. 46,567 | Q90: 52 | R90: 07,819 sek.
C91: 84 | D91: Ķēniņkalns | E91: 117 | F91: 112 | G91: 107 | H91: 67 | I91: 137 | J91: 72 | K91: 35 | L91: 112 | M91: 59 | N91: 94 | O91: =SUM(E91:N91) -> 912 | P91: 09 min. 34,684 | Q91: 55 | R91: 10,449 sek.
C92: 85 | D92: Ānes elpa | E92: 92 | F92: 137 | G92: 32 | H92: 105 | I92: 116 | J92: 81 | K92: 49 | L92: 116 | M92: 58 | N92: 119 | O92: =SUM(E92:N92) -> 905 | P92: 07 min. 28,967 | Q92: 51 | R92: 08,803 sek.
C93: 86 | D93: Sniedziņš | E93: 63 | F93: 104 | G93: 42 | H93: 125 | I93: 126 | J93: 85 | K93: 65 | L93: 89 | M93: 73 | N93: 128 | O93: =SUM(E93:N93) -> 900 | P93: 07 min. 39,199 | Q93: 50 | R93: 09,184 sek.
C94: 87 | D94: PutniņiCūciņas | E94: 114 | F94: 157 | G94: 68 | H94: 60 | I94: 113 | J94: 19 | K94: 51 | L94: 143 | M94: 97 | N94: 69 | O94: =SUM(E94:N94) -> 891 | P94: 04 min. 42,877 | Q94: 46 | R94: 06,150 sek.
C95: 88 | D95: Sestdienis | E95: 81 | F95: 134 | G95: 67 | H95: 84 | I95: 83 | J95: 84 | K95: 73 | L95: 140 | M95: 54 | N95: 90 | O95: =SUM(E95:N95) -> 890 | P95: 09 min. 30,349 | Q95: 53 | R95: 10,761 sek.
C96: 89 | D96: Trīs muskatieri | E96: 109 | F96: 136 | G96: 47 | H96: 99 | I96: 126 | J96: 99 | K96: 22 | L96: 117 | M96: 44 | N96: 89 | O96: =SUM(E96:N96) -> 888 | P96: 09 min. 25,044 | Q96: 54 | R96: 10,464 sek.
C97: 90 | D97: Telma | E97: 91 | F97: 122 | G97: 80 | H97: 105 | I97: 152 | J97: 89 | K97: -16 | L97: 90 | M97: 82 | N97: 93 | O97: =SUM(E97:N97) -> 888 | P97: 05 min. 37,514 | Q97: 49 | R97: 06,888 sek.
C98: 91 | D98: MORO | E98: 112 | F98: 78 | G98: 108 | H98: 84 | I98: 123 | J98: 108 | K98: 4 | L98: 113 | M98: 59 | N98: 91 | O98: =SUM(E98:N98) -> 880 | P98: 11 min. 18,114 | Q98: 55 | R98: 12,329 sek.
C99: 92 | D99: Smiļģakmens | E99: 87 | F99: 73 | G99: 95 | H99: 75 | I99: 164 | J99: 67 | K99: 10 | L99: 136 | M99: 51 | N99: 121 | O99: =SUM(E99:N99) -> 879 | P99: 11 min. 18,509 | Q99: 55 | R99: 12,337 sek.
C100: 93 | D100: Novadnieki | E100: 104 | F100: 131 | G100: 82 | H100: 89 | I100: 102 | J100: 91 | K100: 7 | L100: 87 | M100: 88 | N100: 97 | O100: =SUM(E100:N100) -> 878 | P100: 07 min. 32,033 | Q100: 51 | R100: 08,863 sek.
C101: 94 | D101: Marinē divatā | E101: 77 | F101: 147 | G101: 74 | H101: 88 | I101: 140 | J101: 110 | K101: 30 | L101: 96 | M101: 84 | N101: 32 | O101: =SUM(E101:N101) -> 878 | P101: 07 min. 30,955 | Q101: 50 | R101: 09,019 sek.
C102: 95 | D102: Ruma Šķiņķis | E102: 108 | F102: 175 | G102: 88 | H102: 93 | I102: 71 | J102: 37 | K102: 17 | L102: 91 | M102: 89 | N102: 106 | O102: =SUM(E102:N102) -> 875 | P102: 05 min. 32,294 | Q102: 48 | R102: 06,923 sek.
C103: 96 | D103: Numurviens | E103: 75 | F103: 124 | G103: 56 | H103: 106 | I103: 126 | J103: 49 | K103: 31 | L103: 128 | M103: 97 | N103: 80 | O103: =SUM(E103:N103) -> 872 | P103: 09 min. 53,946 | Q103: 54 | R103: 10,999 sek.
C104: 97 | D104: Pīrādziņi min bet nepadodas | E104: 108 | F104: 103 | G104: 87 | H104: 112 | I104: 156 | J104: 105 | K104: -24 | L104: 92 | M104: 65 | N104: 68 | O104: =SUM(E104:N104) -> 872 | P104: 04 min. 27,604 | Q104: 46 | R104: 05,817 sek.
C105: 98 | D105: Agnusdei | E105: 106 | F105: 186 | G105: 42 | H105: 93 | I105: 145 | J105: 113 | K105: 3 | L105: 92 | M105: 55 | N105: 34 | O105: =SUM(E105:N105) -> 869 | P105: 08 min. 59,695 | Q105: 53 | R105: 10,183 sek.
C106: 99 | D106: Dusmīgie Bebri | E106: 101 | F106: 131 | G106: 102 | H106: 47 | I106: 139 | J106: 73 | K106: 4 | L106: 121 | M106: 93 | N106: 56 | O106: =SUM(E106:N106) -> 867 | P106: 07 min. 57,762 | Q106: 51 | R106: 09,368 sek.
C107: 100 | D107: MELDRI | E107: 107 | F107: 97 | G107: 90 | H107: 61 | I107: 129 | J107: 100 | K107: 16 | L107: 104 | M107: 80 | N107: 78 | O107: =SUM(E107:N107) -> 862 | P107: 10 min. 23,599 | Q107: 54 | R107: 11,548 sek.
C108: 101 | D108: Orb | E108: 69 | F108: 148 | G108: 51 | H108: 116 | I108: 137 | J108: 97 | K108: 25 | L108: 88 | M108: 59 | N108: 70 | O108: =SUM(E108:N108) -> 860 | P108: 06 min. 14,906 | Q108: 49 | R108: 07,651 sek.
C109: 102 | D109: Priekšņēmēji | E109: 31 | F109: 161 | G109: 101 | H109: 67 | I109: 108 | J109: 90 | K109: 10 | L109: 123 | M109: 44 | N109: 123 | O109: =SUM(E109:N109) -> 858 | P109: 07 min. 59,257 | Q109: 50 | R109: 09,585 sek.
C110: 103 | D110: CĪŅAA | E110: 69 | F110: 65 | G110: 112 | H110: 98 | I110: 111 | J110: 88 | K110: 33 | L110: 115 | M110: 58 | N110: 105 | O110: =SUM(E110:N110) -> 854 | P110: 13 min. 36,032 | Q110: 57 | R110: 14,316 sek.
C111: 104 | D111: Milzkalne nepadodas | E111: 118 | F111: 166 | G111: 71 | H111: 100 | I111: 123 | J111: 68 | K111: -8 | L111: 78 | M111: 60 | N111: 76 | O111: =SUM(E111:N111) -> 852 | P111: 07 min. 49,752 | Q111: 50 | R111: 09,395 sek.
C112: 105 | D112: Kalnu Kadiķis | E112: 92 | F112: 183 | G112: 89 | H112: 83 | I112: 40 | J112: 83 | K112: 25 | L112: 81 | M112: 84 | N112: 89 | O112: =SUM(E112:N112) -> 849 | P112: 07 min. 30,541 | Q112: 51 | R112: 08,834 sek.
C113: 106 | D113: Pilskalni | E113: 118 | F113: 160 | G113: 56 | H113: 84 | I113: 106 | J113: 92 | K113: -28 | L113: 90 | M113: 87 | N113: 83 | O113: =SUM(E113:N113) -> 848 | P113: 07 min. 04,335 | Q113: 50 | R113: 08,487 sek.
C114: 107 | D114: Wolf Adventures | E114: 83 | F114: 151 | G114: 57 | H114: 106 | I114: 101 | J114: 45 | K114: 42 | L114: 103 | M114: 83 | N114: 70 | O114: =SUM(E114:N114) -> 841 | P114: 07 min. 45,232 | Q114: 49 | R114: 09,495 sek.
C115: 108 | D115: Alķīmiķe | E115: 60 | F115: 149 | G115: 57 | H115: 87 | I115: 161 | J115: 80 | K115: 29 | L115: 131 | M115: 66 | N115: 20 | O115: =SUM(E115:N115) -> 840 | P115: 08 min. 23,115 | Q115: 49 | R115: 10,268 sek.
C116: 109 | D116: Pa zoino 3 | E116: 85 | F116: 165 | G116: 56 | H116: 87 | I116: 130 | J116: 81 | K116: 17 | L116: 73 | M116: 62 | N116: 83 | O116: =SUM(E116:N116) -> 839 | P116: 06 min. 19,596 | Q116: 47 | R116: 08,077 sek.
C117: 110 | D117: Kas neriskē,tas nedzer | E117: 105 | F117: 142 | G117: 45 | H117: 66 | I117: 87 | J117: 72 | K117: 57 | L117: 91 | M117: 52 | N117: 119 | O117: =SUM(E117:N117) -> 836 | P117: 09 min. 46,950 | Q117: 53 | R117: 11,075 sek.
C118: 111 | D118: ZinuKautKo | E118: 97 | F118: 144 | G118: 56 | H118: 90 | I118: 122 | J118: 102 | K118: 23 | L118: 62 | M118: 63 | N118: 71 | O118: =SUM(E118:N118) -> 830 | P118: 06 min. 52,182 | Q118: 47 | R118: 08,770 sek.
C119: 112 | D119: Kukurznīši | E119: 78 | F119: 152 | G119: 52 | H119: 107 | I119: 117 | J119: 82 | K119: 0 | L119: 95 | M119: 60 | N119: 84 | O119: =SUM(E119:N119) -> 827 | P119: 08 min. 43,667 | Q119: 50 | R119: 10,473 sek.
C120: 113 | D120: Zemīte | E120: 87 | F120: 162 | G120: 95 | H120: 50 | I120: 151 | J120: 59 | K120: -19 | L120: 81 | M120: 72 | N120: 85 | O120: =SUM(E120:N120) -> 823 | P120: 05 min. 10,400 | Q120: 46 | R120: 06,748 sek.
C121: 114 | D121: Konduktors | E121: 102 | F121: 122 | G121: 104 | H121: 63 | I121: 100 | J121: 85 | K121: 52 | L121: 70 | M121: 42 | N121: 81 | O121: =SUM(E121:N121) -> 821 | P121: 05 min. 56,418 | Q121: 46 | R121: 07,748 sek.
C122: 115 | D122: IGG | E122: 85 | F122: 147 | G122: 40 | H122: 107 | I122: 125 | J122: 80 | K122: -1 | L122: 96 | M122: 49 | N122: 89 | O122: =SUM(E122:N122) -> 817 | P122: 09 min. 35,428 | Q122: 52 | R122: 11,066 sek.
C123: 116 | D123: Cheeeeers | E123: 74 | F123: 146 | G123: 39 | H123: 93 | I123: 164 | J123: 88 | K123: 34 | L123: 72 | M123: 26 | N123: 80 | O123: =SUM(E123:N123) -> 816 | P123: 04 min. 30,223 | Q123: 44 | R123: 06,141 sek.
C124: 117 | D124: Rūķu komanda 2026 | E124: 88 | F124: 141 | G124: 108 | H124: 109 | I124: 77 | J124: 81 | K124: 7 | L124: 108 | M124: 8 | N124: 88 | O124: =SUM(E124:N124) -> 815 | P124: 06 min. 32,102 | Q124: 47 | R124: 08,343 sek.
C125: 118 | D125: Saunaga vārnas | E125: 85 | F125: 154 | G125: 41 | H125: 97 | I125: 88 | J125: 122 | K125: 17 | L125: 95 | M125: 48 | N125: 64 | O125: =SUM(E125:N125) -> 811 | P125: 06 min. 34,132 | Q125: 46 | R125: 08,568 sek.
C126: 119 | D126: Vecie ērmi | E126: 100 | F126: 121 | G126: 44 | H126: 87 | I126: 120 | J126: 64 | K126: 32 | L126: 108 | M126: 66 | N126: 68 | O126: =SUM(E126:N126) -> 810 | P126: 09 min. 35,056 | Q126: 50 | R126: 11,501 sek.
C127: 120 | D127: Pa zoino 2 | E127: 83 | F127: 165 | G127: 39 | H127: 43 | I127: 129 | J127: 43 | K127: 2 | L127: 115 | M127: 90 | N127: 101 | O127: =SUM(E127:N127) -> 810 | P127: 04 min. 11,328 | Q127: 43 | R127: 05,845 sek.
C128: 121 | D128: Avotini | E128: 87 | F128: 144 | G128: 79 | H128: 88 | I128: 138 | J128: 115 | K128: -19 | L128: 82 | M128: 30 | N128: 62 | O128: =SUM(E128:N128) -> 806 | P128: 07 min. 56,835 | Q128: 50 | R128: 09,537 sek.
C129: 122 | D129: Active | E129: 76 | F129: 141 | G129: 69 | H129: 84 | I129: 92 | J129: 90 | K129: 30 | L129: 101 | M129: 48 | N129: 72 | O129: =SUM(E129:N129) -> 803 | P129: 08 min. 42,411 | Q129: 49 | R129: 10,661 sek.
C130: 123 | D130: Dzeņi | E130: 81 | F130: 128 | G130: 49 | H130: 77 | I130: 90 | J130: 87 | K130: 41 | L130: 100 | M130: 54 | N130: 96 | O130: =SUM(E130:N130) -> 803 | P130: 08 min. 05,707 | Q130: 48 | R130: 10,119 sek.
C131: 124 | D131: Osy | E131: 99 | F131: 138 | G131: 77 | H131: 67 | I131: 82 | J131: 86 | K131: 2 | L131: 107 | M131: 40 | N131: 100 | O131: =SUM(E131:N131) -> 798 | P131: 04 min. 58,183 | Q131: 44 | R131: 06,777 sek.
C132: 125 | D132: Kādam arī jāzaudē | E132: 99 | F132: 137 | G132: 47 | H132: 62 | I132: 102 | J132: 112 | K132: -3 | L132: 120 | M132: 66 | N132: 54 | O132: =SUM(E132:N132) -> 796 | P132: 09 min. 06,530 | Q132: 50 | R132: 10,931 sek.
C133: 126 | D133: GaiduVasaru | E133: 83 | F133: 89 | G133: 75 | H133: 93 | I133: 95 | J133: 71 | K133: 20 | L133: 119 | M133: 62 | N133: 88 | O133: =SUM(E133:N133) -> 795 | P133: 09 min. 29,889 | Q133: 51 | R133: 11,174 sek.
C134: 127 | D134: SudrabuDace | E134: 125 | F134: 118 | G134: 74 | H134: 100 | I134: 86 | J134: 64 | K134: 21 | L134: 59 | M134: 80 | N134: 66 | O134: =SUM(E134:N134) -> 793 | P134: 05 min. 56,864 | Q134: 45 | R134: 07,930 sek.
C135: 128 | D135: Saulīšu mafija | E135: 88 | F135: 142 | G135: 94 | H135: 114 | I135: 108 | J135: 86 | K135: -19 | L135: 58 | M135: 88 | N135: 31 | O135: =SUM(E135:N135) -> 790 | P135: 06 min. 41,816 | Q135: 47 | R135: 08,549 sek.
C136: 129 | D136: Doras ģimene | E136: 97 | F136: 143 | G136: 68 | H136: 80 | I136: 122 | J136: 95 | K136: -37 | L136: 102 | M136: 62 | N136: 53 | O136: =SUM(E136:N136) -> 785 | P136: 09 min. 23,191 | Q136: 51 | R136: 11,043 sek.
C137: 130 | D137: Mrs.XXX | E137: 105 | F137: 153 | G137: 41 | H137: 89 | I137: 75 | J137: 110 | K137: 3 | L137: 110 | M137: 61 | N137: 38 | O137: =SUM(E137:N137) -> 785 | P137: 09 min. 55,525 | Q137: 51 | R137: 10,518 sek.
C138: 131 | D138: LBG | E138: 92 | F138: 156 | G138: 89 | H138: 81 | I138: 122 | J138: 82 | K138: 17 | L138: 43 | M138: 67 | N138: 36 | O138: =SUM(E138:N138) -> 785 | P138: 07 min. 37,500 | Q138: 48 | R138: 09,531 sek.
C139: 132 | D139: Dūmiņa blice | E139: 87 | F139: 106 | G139: 101 | H139: 106 | I139: 131 | J139: 91 | K139: -62 | L139: 64 | M139: 63 | N139: 94 | O139: =SUM(E139:N139) -> 781 | P139: 06 min. 37,784 | Q139: 48 | R139: 08,287 sek.
C140: 133 | D140: MEKA | E140: 100 | F140: 94 | G140: 103 | H140: 89 | I140: 129 | J140: 23 | K140: -18 | L140: 84 | M140: 72 | N140: 104 | O140: =SUM(E140:N140) -> 780 | P140: 10 min. 33,305 | Q140: 52 | R140: 12,179 sek.
C141: 134 | D141: Visums un visums | E141: 100 | F141: 157 | G141: 49 | H141: 107 | I141: 111 | J141: 55 | K141: -24 | L141: 71 | M141: 115 | N141: 37 | O141: =SUM(E141:N141) -> 778 | P141: 07 min. 49,642 | Q141: 47 | R141: 09,992 sek.
C142: 135 | D142: Ciedru#88 | E142: 100 | F142: 137 | G142: 64 | H142: 67 | I142: 114 | J142: 81 | K142: -13 | L142: 127 | M142: 79 | N142: 19 | O142: =SUM(E142:N142) -> 775 | P142: 05 min. 49,654 | Q142: 44 | R142: 07,947 sek.
C143: 136 | D143: britu zinatnieki | E143: 98 | F143: 180 | G143: 67 | H143: 69 | I143: 107 | J143: 67 | K143: 23 | L143: 82 | M143: 32 | N143: 48 | O143: =SUM(E143:N143) -> 773 | P143: 05 min. 40,481 | Q143: 44 | R143: 07,738 sek.
C144: 137 | D144: Iekod ribās! | E144: 69 | F144: 118 | G144: 66 | H144: 93 | I144: 112 | J144: 79 | K144: 46 | L144: 88 | M144: 44 | N144: 45 | O144: =SUM(E144:N144) -> 760 | P144: 13 min. 38,239 | Q144: 54 | R144: 15,153 sek.
C145: 138 | D145: ČopikS | E145: 113 | F145: 155 | G145: 39 | H145: 68 | I145: 131 | J145: 86 | K145: -21 | L145: 52 | M145: 34 | N145: 102 | O145: =SUM(E145:N145) -> 759 | P145: 05 min. 29,469 | Q145: 44 | R145: 07,488 sek.
C146: 139 | D146: Labais | E146: 56 | F146: 127 | G146: 46 | H146: 126 | I146: 64 | J146: 101 | K146: 25 | L146: 54 | M146: 87 | N146: 73 | O146: =SUM(E146:N146) -> 759 | P146: 06 min. 02,835 | Q146: 43 | R146: 08,438 sek.
C147: 140 | D147: Nākamā komanda | E147: 114 | F147: 150 | G147: 37 | H147: 62 | I147: 94 | J147: 87 | K147: -2 | L147: 75 | M147: 65 | N147: 74 | O147: =SUM(E147:N147) -> 756 | P147: 07 min. 45,270 | Q147: 47 | R147: 09,899 sek.
C148: 141 | D148: BEA | E148: 107 | F148: 120 | G148: 36 | H148: 41 | I148: 90 | J148: 85 | K148: 32 | L148: 136 | M148: 39 | N148: 68 | O148: =SUM(E148:N148) -> 754 | P148: 07 min. 21,659 | Q148: 46 | R148: 09,601 sek.
C149: 142 | D149: marks un co | E149: 81 | F149: 148 | G149: 90 | H149: 23 | I149: 68 | J149: 80 | K149: 43 | L149: 75 | M149: 62 | N149: 83 | O149: =SUM(E149:N149) -> 753 | P149: 05 min. 12,205 | Q149: 41 | R149: 07,615 sek.
C150: 143 | D150: Rūķis Stūķis | E150: 115 | F150: 191 | G150: 60 | H150: 91 | I150: 97 | J150: 69 | K150: -34 | L150: 48 | M150: 57 | N150: 57 | O150: =SUM(E150:N150) -> 751 | P150: 04 min. 43,006 | Q150: 43 | R150: 06,582 sek.
C151: 144 | D151: Smilšu Rukši | E151: 75 | F151: 143 | G151: 77 | H151: 92 | I151: 94 | J151: 74 | K151: -25 | L151: 73 | M151: 63 | N151: 84 | O151: =SUM(E151:N151) -> 750 | P151: 08 min. 21,144 | Q151: 48 | R151: 10,441 sek.
C152: 145 | D152: Aizpuri | E152: 75 | F152: 134 | G152: 67 | H152: 75 | I152: 112 | J152: 62 | K152: -21 | L152: 85 | M152: 62 | N152: 96 | O152: =SUM(E152:N152) -> 747 | P152: 09 min. 46,466 | Q152: 50 | R152: 11,729 sek.
C153: 146 | D153: Stirninieki | E153: 82 | F153: 139 | G153: 83 | H153: 104 | I153: 83 | J153: 53 | K153: -13 | L153: 84 | M153: 57 | N153: 69 | O153: =SUM(E153:N153) -> 741 | P153: 08 min. 19,508 | Q153: 48 | R153: 10,406 sek.
C154: 147 | D154: Čūskulēni | E154: 96 | F154: 149 | G154: 35 | H154: 83 | I154: 125 | J154: 65 | K154: -52 | L154: 69 | M154: 59 | N154: 112 | O154: =SUM(E154:N154) -> 741 | P154: 04 min. 46,302 | Q154: 43 | R154: 06,658 sek.
C155: 148 | D155: Zhee | E155: 78 | F155: 137 | G155: 57 | H155: 44 | I155: 113 | J155: 107 | K155: 38 | L155: 66 | M155: 39 | N155: 54 | O155: =SUM(E155:N155) -> 733 | P155: 08 min. 01,413 | Q155: 45 | R155: 10,698 sek.
C156: 149 | D156: Kazubrenču princeses | E156: 85 | F156: 95 | G156: 100 | H156: 78 | I156: 47 | J156: 100 | K156: -9 | L156: 97 | M156: 61 | N156: 74 | O156: =SUM(E156:N156) -> 728 | P156: 09 min. 28,346 | Q156: 48 | R156: 11,841 sek.
C157: 150 | D157: Živelītes | E157: 99 | F157: 145 | G157: 44 | H157: 57 | I157: 132 | J157: 61 | K157: -9 | L157: 86 | M157: 53 | N157: 60 | O157: =SUM(E157:N157) -> 728 | P157: 05 min. 59,170 | Q157: 43 | R157: 08,353 sek.
C158: 151 | D158: Sandhills | E158: 64 | F158: 89 | G158: 19 | H158: 70 | I158: 151 | J158: 82 | K158: 32 | L158: 72 | M158: 65 | N158: 84 | O158: =SUM(E158:N158) -> 728 | P158: 05 min. 57,468 | Q158: 41 | R158: 08,719 sek.
C159: 152 | D159: Alise & Draugi | E159: 85 | F159: 103 | G159: 37 | H159: 64 | I159: 73 | J159: 68 | K159: 23 | L159: 118 | M159: 47 | N159: 103 | O159: =SUM(E159:N159) -> 721 | P159: 08 min. 37,905 | Q159: 45 | R159: 11,509 sek.
C160: 153 | D160: Cēzars | E160: 82 | F160: 132 | G160: 69 | H160: 44 | I160: 83 | J160: 68 | K160: 25 | L160: 61 | M160: 59 | N160: 98 | O160: =SUM(E160:N160) -> 721 | P160: 06 min. 39,032 | Q160: 43 | R160: 09,280 sek.
C161: 154 | D161: Trešais randiņš | E161: 114 | F161: 116 | G161: 62 | H161: 69 | I161: 91 | J161: 44 | K161: 16 | L161: 113 | M161: 57 | N161: 38 | O161: =SUM(E161:N161) -> 720 | P161: 10 min. 21,940 | Q161: 49 | R161: 12,693 sek.
C162: 155 | D162: Lēnām bet riskanti | E162: 66 | F162: 176 | G162: 43 | H162: 62 | I162: 107 | J162: 79 | K162: 3 | L162: 75 | M162: 66 | N162: 43 | O162: =SUM(E162:N162) -> 720 | P162: 06 min. 02,412 | Q162: 43 | R162: 08,428 sek.
C163: 156 | D163: MIKO1 | E163: 95 | F163: 110 | G163: 77 | H163: 67 | I163: 116 | J163: 60 | K163: -25 | L163: 88 | M163: 51 | N163: 80 | O163: =SUM(E163:N163) -> 719 | P163: 10 min. 10,141 | Q163: 48 | R163: 13,897 sek.
C164: 157 | D164: Brūča Viļa cietie rieksti | E164: 94 | F164: 161 | G164: 68 | H164: 47 | I164: 93 | J164: 79 | K164: -24 | L164: 69 | M164: 63 | N164: 66 | O164: =SUM(E164:N164) -> 716 | P164: 04 min. 53,121 | Q164: 41 | R164: 07,149 sek.
C165: 158 | D165: Selerija kungs un draugi | E165: 102 | F165: 130 | G165: 28 | H165: 65 | I165: 111 | J165: 85 | K165: -5 | L165: 74 | M165: 42 | N165: 82 | O165: =SUM(E165:N165) -> 714 | P165: 07 min. 17,407 | Q165: 43 | R165: 10,172 sek.
C166: 159 | D166: Bingi | E166: 66 | F166: 159 | G166: 77 | H166: 62 | I166: 112 | J166: 86 | K166: -42 | L166: 98 | M166: 41 | N166: 49 | O166: =SUM(E166:N166) -> 708 | P166: 07 min. 47,258 | Q166: 44 | R166: 10,620 sek.
C167: 160 | D167: CoolBan | E167: 89 | F167: 134 | G167: 83 | H167: 40 | I167: 130 | J167: 79 | K167: -56 | L167: 79 | M167: 62 | N167: 61 | O167: =SUM(E167:N167) -> 701 | P167: 05 min. 31,877 | Q167: 42 | R167: 07,902 sek.
C168: 161 | D168: I&S | E168: 109 | F168: 88 | G168: 52 | H168: 78 | I168: 103 | J168: 97 | K168: -23 | L168: 55 | M168: 55 | N168: 80 | O168: =SUM(E168:N168) -> 694 | P168: 07 min. 45,434 | Q168: 44 | R168: 10,578 sek.
C169: 162 | D169: Epo | E169: 87 | F169: 114 | G169: 33 | H169: 90 | I169: 97 | J169: 72 | K169: 18 | L169: 88 | M169: 54 | N169: 40 | O169: =SUM(E169:N169) -> 693 | P169: 10 min. 25,718 | Q169: 47 | R169: 13,313 sek.
C170: 163 | D170: User | E170: 74 | F170: 128 | G170: 63 | H170: 58 | I170: 111 | J170: 80 | K170: -7 | L170: 61 | M170: 49 | N170: 76 | O170: =SUM(E170:N170) -> 693 | P170: 07 min. 38,566 | Q170: 43 | R170: 10,664 sek.
C171: 164 | D171: Ronis | E171: 93 | F171: 136 | G171: 88 | H171: 92 | I171: 61 | J171: 53 | K171: 18 | L171: 63 | M171: 75 | N171: 14 | O171: =SUM(E171:N171) -> 693 | P171: 03 min. 42,599 | Q171: 38 | R171: 05,858 sek.
C172: 165 | D172: Tikai mieru! | E172: 102 | F172: 129 | G172: 56 | H172: 56 | I172: 112 | J172: 102 | K172: -17 | L172: 52 | M172: 30 | N172: 70 | O172: =SUM(E172:N172) -> 692 | P172: 08 min. 10,210 | Q172: 46 | R172: 10,657 sek.
C173: 166 | D173: Dakstiņiela | E173: 96 | F173: 146 | G173: 44 | H173: 59 | I173: 94 | J173: 48 | K173: -5 | L173: 59 | M173: 70 | N173: 78 | O173: =SUM(E173:N173) -> 689 | P173: 08 min. 24,247 | Q173: 45 | R173: 11,205 sek.
C174: 167 | D174: G Power | E174: 89 | F174: 75 | G174: 42 | H174: 115 | I174: 85 | J174: 37 | K174: 37 | L174: 94 | M174: 39 | N174: 75 | O174: =SUM(E174:N174) -> 688 | P174: 06 min. 17,914 | Q174: 40 | R174: 09,448 sek.
C175: 168 | D175: Smaida klīnika | E175: 81 | F175: 87 | G175: 42 | H175: 66 | I175: 82 | J175: 78 | K175: 13 | L175: 116 | M175: 47 | N175: 75 | O175: =SUM(E175:N175) -> 687 | P175: 15 min. 07,542 | Q175: 54 | R175: 16,806 sek.
C176: 169 | D176: Friča Vimbas | E176: 75 | F176: 94 | G176: 49 | H176: 81 | I176: 124 | J176: 55 | K176: -6 | L176: 86 | M176: 56 | N176: 69 | O176: =SUM(E176:N176) -> 683 | P176: 10 min. 29,136 | Q176: 46 | R176: 13,677 sek.
C177: 170 | D177: Fantastiki | E177: 77 | F177: 162 | G177: 31 | H177: 102 | I177: 43 | J177: 121 | K177: -32 | L177: 67 | M177: 56 | N177: 55 | O177: =SUM(E177:N177) -> 682 | P177: 04 min. 16,020 | Q177: 40 | R177: 06,401 sek.
C178: 171 | D178: Podzinieks | E178: 73 | F178: 118 | G178: 39 | H178: 111 | I178: 90 | J178: 70 | K178: -23 | L178: 83 | M178: 52 | N178: 69 | O178: =SUM(E178:N178) -> 682 | P178: 03 min. 29,472 | Q178: 36 | R178: 05,819 sek.
C179: 172 | D179: Deglite | E179: 87 | F179: 144 | G179: 34 | H179: 70 | I179: 36 | J179: 106 | K179: -24 | L179: 101 | M179: 67 | N179: 56 | O179: =SUM(E179:N179) -> 677 | P179: 06 min. 05,902 | Q179: 41 | R179: 08,924 sek.
C180: 173 | D180: Baracuda | E180: 114 | F180: 144 | G180: 20 | H180: 86 | I180: 122 | J180: 59 | K180: -26 | L180: 71 | M180: 45 | N180: 42 | O180: =SUM(E180:N180) -> 677 | P180: 03 min. 54,726 | Q180: 38 | R180: 06,177 sek.
C181: 174 | D181: Ko mēs te dar? | E181: 60 | F181: 131 | G181: 65 | H181: 57 | I181: 119 | J181: 62 | K181: -11 | L181: 45 | M181: 60 | N181: 87 | O181: =SUM(E181:N181) -> 675 | P181: 07 min. 43,933 | Q181: 44 | R181: 10,544 sek.
C182: 175 | D182: Ditiņa labākā | E182: 82 | F182: 150 | G182: 26 | H182: 70 | I182: 77 | J182: 66 | K182: 41 | L182: 67 | M182: 48 | N182: 45 | O182: =SUM(E182:N182) -> 672 | P182: 07 min. 39,351 | Q182: 41 | R182: 11,204 sek.
C183: 176 | D183: 123456 | E183: 47 | F183: 149 | G183: 49 | H183: 67 | I183: 48 | J183: 90 | K183: 14 | L183: 78 | M183: 64 | N183: 58 | O183: =SUM(E183:N183) -> 664 | P183: 07 min. 19,606 | Q183: 42 | R183: 10,467 sek.
C184: 177 | D184: Lampiņu drudzis | E184: 72 | F184: 149 | G184: 0 | H184: 87 | I184: 92 | J184: 76 | K184: -12 | L184: 64 | M184: 27 | N184: 104 | O184: =SUM(E184:N184) -> 659 | P184: 06 min. 29,651 | Q184: 40 | R184: 09,741 sek.
C185: 178 | D185: JP&co | E185: 50 | F185: 116 | G185: 61 | H185: 76 | I185: 62 | J185: 56 | K185: 27 | L185: 84 | M185: 88 | N185: 28 | O185: =SUM(E185:N185) -> 648 | P185: 09 min. 31,880 | Q185: 44 | R185: 12,997 sek.
C186: 179 | D186: Jopčiks un co | E186: 66 | F186: 154 | G186: 62 | H186: 84 | I186: 89 | J186: 50 | K186: 14 | L186: 43 | M186: 56 | N186: 28 | O186: =SUM(E186:N186) -> 646 | P186: 07 min. 00,155 | Q186: 41 | R186: 10,248 sek.
C187: 180 | D187: Shiman | E187: 76 | F187: 107 | G187: 73 | H187: 63 | I187: 105 | J187: 64 | K187: -33 | L187: 63 | M187: 58 | N187: 61 | O187: =SUM(E187:N187) -> 637 | P187: 06 min. 15,363 | Q187: 40 | R187: 09,384 sek.
C188: 181 | D188: Aconis67 | E188: 73 | F188: 147 | G188: 79 | H188: 63 | I188: 56 | J188: 50 | K188: 37 | L188: 43 | M188: 44 | N188: 40 | O188: =SUM(E188:N188) -> 632 | P188: 07 min. 27,307 | Q188: 40 | R188: 11,183 sek.
C189: 182 | D189: PPA2 | E189: 94 | F189: 102 | G189: 19 | H189: 78 | I189: 94 | J189: 68 | K189: 1 | L189: 64 | M189: 28 | N189: 79 | O189: =SUM(E189:N189) -> 627 | P189: 10 min. 51,092 | Q189: 43 | R189: 15,142 sek.
C190: 183 | D190: KAUT VAI | E190: 70 | F190: 114 | G190: 85 | H190: 59 | I190: 93 | J190: 75 | K190: -15 | L190: 47 | M190: 35 | N190: 61 | O190: =SUM(E190:N190) -> 624 | P190: 08 min. 06,230 | Q190: 43 | R190: 11,308 sek.
C191: 184 | D191: Pārogres gatves uzvarētāji | E191: 58 | F191: 117 | G191: 60 | H191: 85 | I191: 114 | J191: 23 | K191: -18 | L191: 73 | M191: 59 | N191: 53 | O191: =SUM(E191:N191) -> 624 | P191: 06 min. 28,211 | Q191: 39 | R191: 09,954 sek.
C192: 185 | D192: Tomasanna | E192: 43 | F192: 115 | G192: 30 | H192: 110 | I192: 112 | J192: 57 | K192: 3 | L192: 73 | M192: 50 | N192: 30 | O192: =SUM(E192:N192) -> 623 | P192: 07 min. 31,950 | Q192: 41 | R192: 11,023 sek.
C193: 186 | D193: Susļiki | E193: 76 | F193: 103 | G193: 66 | H193: 67 | I193: 69 | J193: 43 | K193: -41 | L193: 75 | M193: 52 | N193: 104 | O193: =SUM(E193:N193) -> 614 | P193: 04 min. 40,800 | Q193: 36 | R193: 07,800 sek.
C194: 187 | D194: Kvinna | E194: 73 | F194: 144 | G194: 39 | H194: 70 | I194: 98 | J194: 52 | K194: 37 | L194: 46 | M194: 26 | N194: 26 | O194: =SUM(E194:N194) -> 611 | P194: 08 min. 34,412 | Q194: 42 | R194: 12,248 sek.
C195: 188 | D195: Guncene | E195: 75 | F195: 163 | G195: 17 | H195: 87 | I195: 64 | J195: 89 | K195: 11 | L195: 23 | M195: 56 | N195: 26 | O195: =SUM(E195:N195) -> 611 | P195: 04 min. 08,062 | Q195: 36 | R195: 06,891 sek.
C196: 189 | D196: Šampanieša smadzenes | E196: 57 | F196: 78 | G196: 69 | H196: 66 | I196: 82 | J196: 24 | K196: 13 | L196: 86 | M196: 45 | N196: 89 | O196: =SUM(E196:N196) -> 609 | P196: 03 min. 57,867 | Q196: 34 | R196: 06,996 sek.
C197: 190 | D197: Nepareizās atb.,pareizie cilvēki | E197: 68 | F197: 105 | G197: 51 | H197: 70 | I197: 109 | J197: 55 | K197: -24 | L197: 53 | M197: 38 | N197: 75 | O197: =SUM(E197:N197) -> 600 | P197: 08 min. 00,017 | Q197: 40 | R197: 12,000 sek.
C198: 191 | D198: sitrA | E198: 38 | F198: 155 | G198: 63 | H198: 75 | I198: 149 | J198: 35 | K198: -34 | L198: 47 | M198: 18 | N198: 48 | O198: =SUM(E198:N198) -> 594 | P198: 06 min. 27,432 | Q198: 39 | R198: 09,934 sek.
C199: 192 | D199: Tūristi | E199: 88 | F199: 117 | G199: 75 | H199: 78 | I199: 67 | J199: 41 | K199: -12 | L199: 59 | M199: 60 | N199: 18 | O199: =SUM(E199:N199) -> 591 | P199: 07 min. 21,381 | Q199: 39 | R199: 11,317 sek.
C200: 193 | D200: GRAVAIŅI | E200: 63 | F200: 102 | G200: 48 | H200: 63 | I200: 52 | J200: 32 | K200: 48 | L200: 92 | M200: 43 | N200: 46 | O200: =SUM(E200:N200) -> 589 | P200: 12 min. 13,295 | Q200: 46 | R200: 15,941 sek.
C201: 194 | D201: Klusie dzērāji | E201: 100 | F201: 126 | G201: 34 | H201: 80 | I201: 78 | J201: 22 | K201: 4 | L201: 21 | M201: 82 | N201: 40 | O201: =SUM(E201:N201) -> 587 | P201: 04 min. 44,417 | Q201: 35 | R201: 08,126 sek.
... 48 more rows

Sheet raundi
B2: =CONCATENATE(tabula!C2," --> Raundu uzvarētāji") -> "Lielā viktorīna: Atskats uz 2025.gadu" (tiešsaistē / vebinārā) | 2026.gada 3.janvāris --> Raundu uzvarētāji
B3: # | C3: Raunda nosaukums | D3: Dalībnieks | E3: Rezultāts | F3: AVG | G3: MAX | H3: % no max
B4: 1 | C4: =TRANSPOSE(tabula!E4:N4) -> Pavediens | D4: Āreče | E4: 142 | F4: =TRANSPOSE(tabula!E7:N7) -> 90.1 | G4: =TRANSPOSE(tabula!E5:N5) -> 150 | H4: =E4/G4 -> 0.9466666667
B5: 2 | C5: Ekspresis | D5: Austošais Susurs | E5: 213 | F5: 136.3 | G5: 216 | H5: =E5/G5 -> 0.9861111111
B6: 3 | C6: Vizuālais | D6: Āreče | E6: 143 | F6: 69.3 | G6: 150 | H6: 0.9533333333
B7: 4 | C7: Kinopasaule | D7: Āreče | E7: 141 | F7: 82.2 | G7: 150 | H7: 0.94
B8: 5 | C8: Ķēde | D8: Sindija DJV | E8: 191 | F8: 110.7 | G8: 200 | H8: 0.955
B9: 6 | C9: Latvija | D9: Badijs spēlē viktorīnu | E9: 138 | F9: 76.6 | G9: 150 | H9: 0.92
B10: 7 | C10: Risks | D10: Bunkurs_13 | E10: 103 | F10: 14.6 | G10: 120 | H10: 0.8583333333
B11: 8 | C11: Kas kopīgs? | D11: Sindija DJV | E11: 188 | F11: 90.7 | G11: 205 | H11: 0.9170731707
B12: 9 | C12: Liekais pazūd | D12: Āreče | E12: 126 | F12: 61.5 | G12: 150 | H12: 0.84
B13: 10 | C13: Audio | D13: Trīs aklās peles | E13: 134 | F13: 72.9 | G13: 150 | H13: 0.8933333333 | M13: ka
B14: - | C14: Uzvarētājs | E14: =tabula!O8 -> 1451 | F14: =tabula!O7 -> 802.1 | G14: =SUM(G4:G13) -> 1641 | H14: =E14/G14 -> 0.8842169409
C15: =tabula!D8 -> Āreče
